bitfinex/quotes_ETHUSD_20250425
["timestamp","ask_amount","ask_price","bid_price","bid_amount"]
[1745547022928,5.99783621,1762.2,1762.1,5.67498999]
[1745547023705,5.144,1762.2,1762.1,5.67498999]
[1745547024092,5.144,1762.2,1762.1,6.45998999]
[1745547024293,22.178,1762.4,1762.3,5.67440276]
[1745547025036,22.178,1762.4,1762.2,5.67451999]
[1745547025242,22.178,1762.4,1762.3,5.67440276]
[1745547025834,22.95101369,1762.4,1762.2,5.67451499]
[1745547026125,23.73371369,1762.4,1762.2,5.67451499]
[1745547026330,23.73371369,1762.4,1762.0,5.67524747]
[1745547026639,2.37337137,1762.3,1762.2,5.67472477]
[1745547027494,7.51737137,1762.3,1762.2,5.67472477]
[1745547029444,7.51737137,1762.3,1762.1,5.67491456]
[1745547029613,7.51737137,1762.3,1762.2,5.67472477]
[1745547031403,7.51737137,1762.3,1762.2,5.90962745]
[1745547032545,5.144,1762.3,1762.2,5.90962745]
[1745547035045,5.144,1762.3,1762.2,0.23490268]
[1745547035240,5.144,1762.3,1762.2,5.90962745]
[1745547035447,0.7871,1762.3,1762.2,0.23490268]
[1745547035652,5.144,1762.3,1762.2,5.90962745]
[1745547035821,5.45876838,1762.3,1762.2,5.90962745]
[1745547036743,5.144,1762.3,1762.2,5.90962745]
[1745547037060,17.034,1762.4,1762.3,5.67440276]
[1745547037217,23.96011,1762.4,1762.3,5.67440276]
[1745547037617,24.27490028,1762.4,1762.3,0.23136148]
[1745547038274,28.75633155,1762.4,1762.3,0.23136148]
[1745547038640,3.0,1762.3,1761.9,5.67567003]
[1745547039179,0.31479028,1762.2,1762.0,0.21403734]
[1745547039338,0.64626931,1762.2,1762.0,0.21403734]
[1745547039545,0.64626931,1762.2,1762.0,5.88932419]
[1745547039759,0.31479028,1762.2,1762.1,5.67504681]
[1745547040059,0.31479028,1762.2,1762.1,5.88863513]
[1745547040620,5.45879028,1762.2,1762.1,5.88863513]
[1745547040822,5.144,1762.2,1762.1,5.88863513]
[1745547042169,0.31479028,1762.3,1762.1,0.21358832]
[1745547042329,5.144,1762.2,1762.1,0.21358832]
[1745547042523,5.144,1762.2,1762.0,5.67533168]
[1745547042737,5.144,1762.2,1762.1,0.21434894]
[1745547042940,5.144,1762.2,1762.1,5.88939575]
[1745547043144,5.45879028,1762.2,1762.1,0.21434894]
[1745547043339,6.2587405,1762.2,1762.1,0.21434894]
[1745547043633,1.1147405,1762.2,1762.1,0.21434894]
[1745547043829,6.2587405,1762.2,1761.9,5.67548149]
[1745547044027,6.2587405,1762.2,1762.0,5.88809704]
[1745547044227,0.31479028,1762.1,1762.0,5.88809704]
[1745547044664,0.31479028,1762.1,1762.0,0.21287477]
[1745547044869,0.94066433,1762.1,1762.0,0.21287477]
[1745547045449,5.45879028,1762.1,1762.0,0.21287477]
[1745547047756,5.45879028,1762.1,1762.0,5.88824366]
[1745547047957,5.45879028,1762.1,1762.0,0.21287477]
[1745547048873,5.45879028,1762.1,1762.0,0.21261247]
[1745547049874,5.45879028,1762.1,1761.8,12.14310124]
[1745547050172,5.45879028,1762.1,1762.0,5.88798136]
[1745547050399,19.00711188,1762.4,1762.2,5.6744426]
[1745547050400,5.067,1762.3,1762.2,5.6744426]
[1745547050546,5.067,1762.3,1762.1,5.67491089]
[1745547050859,5.067,1762.3,1762.2,0.21251538]
[1745547051250,5.38196404,1762.3,1762.2,5.88724015]
[1745547051981,5.067,1762.3,1762.2,5.88724015]
[1745547052468,17.034,1762.4,1762.2,5.88724015]
[1745547052673,5.067,1762.3,1762.2,5.88724015]
[1745547052970,5.067,1762.3,1762.2,0.21251538]
[1745547053169,5.067,1762.3,1762.2,5.88724015]
[1745547053582,5.067,1762.3,1762.2,0.21251538]
[1745547053783,7.2771,1762.3,1762.2,0.21251538]
[1745547053985,2.52511608,1762.3,1762.2,0.21251538]
[1745547054154,7.59211608,1762.3,1762.2,0.21251538]
[1745547055254,5.38201608,1762.3,1762.2,0.21251538]
[1745547056182,6.19511608,1762.3,1762.2,0.21251538]
[1745547056599,0.7627,1762.2,1761.6,0.759]
[1745547056756,1.53591731,1761.9,1761.6,5.67663637]
[1745547057083,1.53591731,1761.9,1761.4,0.759]
[1745547057084,5.067,1761.8,1761.4,6.43627447]
[1745547057286,5.067,1761.8,1761.4,6.43611289]
[1745547057463,5.067,1761.8,1761.4,12.11321809]
[1745547057660,5.77049082,1761.8,1761.4,6.43623093]
[1745547058052,6.0855069,1761.8,1761.4,5.67716049]
[1745547058253,5.067,1761.7,1761.4,5.67716049]
[1745547058553,5.67555069,1761.7,1761.4,5.67716049]
[1745547059090,0.7804,1761.6,1761.2,0.7602]
[1745547059275,0.77321731,1761.5,1761.1,5.67803732]
[1745547059582,1.22857904,1761.5,1761.1,5.67803732]
[1745547060653,1.09541608,1761.6,1761.0,6.50033715]
[1745547060874,1.09541608,1761.6,1761.3,5.67745462]
[1745547061388,1.09541608,1761.6,1761.2,11.35566193]
[1745547061724,1.09541608,1761.6,1761.3,5.67760611]
[1745547062256,0.31501608,1761.6,1761.4,5.67718221]
[1745547062456,5.99056677,1761.7,1761.3,6.4544706]
[1745547062856,0.59905668,1761.6,1761.3,6.4544706]
[1745547063084,0.59905668,1761.6,1761.3,0.777]
[1745547063390,0.8296,1761.5,1761.4,0.21778979]
[1745547064088,9.67081731,1761.5,1761.4,0.21999224]
[1745547064261,11.31152916,1761.5,1761.0,5.67857913]
[1745547064461,11.31152916,1761.5,1761.1,0.22134018]
[1745547065159,7.53831185,1761.5,1761.2,6.47021015]
[1745547065360,7.2245874,1761.5,1761.2,6.47021015]
[1745547065575,5.8976,1761.5,1761.3,0.2204415]
[1745547065988,5.068,1761.5,1761.3,0.2204415]
[1745547067068,5.84121731,1761.5,1761.3,0.2204415]
[1745547067277,1.33432173,1761.4,1761.0,0.828]
[1745547067486,1.33432173,1761.4,1761.0,6.5065696]
[1745547067879,1.33432173,1761.4,1761.0,5.6785696]
[1745547068560,1.33432173,1761.4,1760.8,6.50720452]
[1745547068755,1.33432173,1761.4,1761.1,5.67801852]
[1745547069975,0.58412173,1761.4,1761.2,5.67783813]
[1745547070179,0.58412173,1761.4,1761.1,6.50609732]
[1745547071301,0.58412173,1761.4,1761.1,0.828]
[1745547071999,0.58412173,1761.4,1761.1,6.50615259]
[1745547072184,0.58412173,1761.4,1761.1,6.50618218]
[1745547072389,0.58412173,1761.4,1761.1,0.828]
[1745547072999,0.58412173,1761.4,1761.1,6.50621214]
[1745547075174,0.58412173,1761.4,1761.1,0.828]
[1745547075381,0.58412173,1761.4,1761.0,11.35675201]
[1745547075582,0.58412173,1761.4,1761.1,5.67826098]
[1745547076079,0.58412173,1761.4,1761.0,5.67836691]
[1745547076282,0.58412173,1761.4,1761.0,11.35672067]
[1745547076468,0.58412173,1761.4,1761.1,5.67824162]
[1745547077969,0.58412173,1761.4,1761.0,5.67838904]
[1745547078304,0.58412173,1761.4,1761.1,0.22303125]
[1745547078508,0.58412173,1761.4,1761.1,5.90128226]
[1745547078708,0.58412173,1761.4,1761.1,0.22303125]
[1745547080365,0.7502,1761.3,1761.1,0.22303125]
[1745547080928,0.7502,1761.3,1761.2,0.22258183]
[1745547081291,0.7502,1761.3,1761.0,6.42849784]
[1745547081525,0.7502,1761.3,1761.1,0.22303125]
[1745547081709,0.7502,1761.3,1761.1,0.20948141]
[1745547081886,0.7502,1761.3,1761.1,5.88774781]
[1745547082084,0.7739,1761.7,1761.1,1.44110597]
[1745547082295,22.078,1761.8,1761.6,5.67664613]
[1745547082501,5.045,1761.8,1761.7,5.89674362]
[1745547083317,5.045,1761.8,1761.7,0.22040827]
[1745547083589,5.045,1761.8,1761.7,5.89674362]
[1745547085421,5.045,1761.9,1761.7,5.89674362]
[1745547085996,5.045,1761.9,1761.7,11.57285741]
[1745547086323,5.045,1761.9,1761.8,5.67601316]
[1745547086784,5.045,1761.9,1761.8,0.21907771]
[1745547087684,5.045,1761.9,1761.8,5.89509087]
[1745547091287,5.045,1761.9,1761.8,0.21907771]
[1745547092620,5.045,1761.9,1761.8,5.89509087]
[1745547093223,5.045,1761.9,1761.8,0.21907771]
[1745547096111,5.045,1761.9,1761.8,5.89509087]
[1745547097935,5.044,1762.1,1762.0,5.67521562]
[1745547098336,5.044,1762.1,1762.0,5.88975036]
[1745547100497,17.034,1762.5,1762.3,5.67438732]
[1745547100703,5.044,1762.4,1762.3,5.67438732]
[1745547106021,5.043,1762.8,1762.6,5.67323204]
[1745547107452,5.70673173,1762.8,1762.6,5.67323204]
[1745547108252,5.70673173,1762.8,1762.7,0.20851061]
[1745547108446,5.70673173,1762.8,1762.6,5.67323204]
[1745547108649,5.70673173,1762.8,1762.7,0.20851061]
[1745547108830,6.53313173,1762.8,1762.2,5.67443779]
[1745547109026,0.8264,1762.5,1762.3,0.20690393]
[1745547109226,0.8264,1762.5,1762.1,5.67500268]
[1745547109227,5.74721731,1762.4,1762.1,5.67500268]
[1745547109427,6.40457904,1762.4,1762.2,0.20735278]
[1745547110057,6.40457904,1762.4,1762.2,5.88204694]
[1745547110256,6.40457904,1762.4,1762.2,0.20735278]
[1745547112660,6.40457904,1762.4,1761.9,5.67549061]
[1745547112870,0.6404579,1762.3,1762.0,5.88422872]
[1745547113032,0.6404579,1762.3,1762.1,5.67497134]
[1745547113232,0.6404579,1762.3,1762.2,0.20811302]
[1745547113645,0.6404579,1762.3,1762.0,11.35025445]
[1745547113963,0.6404579,1762.3,1762.1,0.20856193]
[1745547117264,0.6404579,1762.3,1762.2,5.67472477]
[1745547117467,0.6404579,1762.3,1762.1,5.88357135]
[1745547117468,4.974,1762.4,1762.1,6.67892884]
[1745547117671,4.974,1762.4,1762.2,5.8826081]
[1745547117962,4.974,1762.4,1762.2,5.8828131]
[1745547118177,4.974,1762.4,1762.3,5.67440276]
[1745547118474,4.974,1762.4,1762.3,0.20766416]
[1745547119676,4.974,1762.4,1762.2,5.67469887]
[1745547119838,4.974,1762.4,1762.3,0.20766416]
[1745547120678,4.974,1762.4,1762.3,5.88206692]
[1745547121174,0.31408667,1762.6,1762.4,5.67397809]
[1745547121345,5.28708667,1762.6,1762.5,5.67375886]
[1745547121537,5.28708667,1762.6,1762.5,0.2067666]
[1745547121971,5.28708667,1762.6,1762.2,5.67449929]
[1745547122276,5.28708667,1762.6,1762.3,5.67439834]
[1745547122456,5.28708667,1762.6,1762.4,0.20721535]
[1745547122779,6.01478217,1762.6,1762.3,5.67439834]
[1745547122965,9.01478217,1762.6,1762.5,0.2067666]
[1745547124042,9.01478217,1762.6,1762.2,5.67465888]
[1745547124370,1.52391731,1762.4,1762.3,0.20842441]
[1745547124751,1.52391731,1762.4,1762.0,5.6752125]
[1745547125175,1.52391731,1762.4,1762.1,0.20940669]
[1745547125773,1.52391731,1762.4,1762.0,5.67534586]
[1745547125977,1.52391731,1762.4,1762.2,0.20895778]
[1745547125978,1.83800398,1762.4,1762.2,0.20895778]
[1745547126138,2.4119522,1762.4,1762.1,0.20940669]
[1745547126740,2.4119522,1762.4,1762.1,5.88441985]
[1745547126983,1.06478667,1762.4,1762.1,0.20940669]
[1745547127154,1.06478667,1762.4,1762.1,5.88435166]
[1745547127870,1.06478667,1762.4,1762.1,0.20940669]
[1745547128258,1.06478667,1762.4,1762.1,5.88435906]
[1745547128579,1.06478667,1762.4,1762.1,0.20940669]
[1745547128749,1.56141316,1762.4,1762.1,0.20940669]
[1745547131788,1.56141316,1762.4,1762.2,5.6746934]
[1745547132095,1.56141316,1762.4,1762.3,0.20902917]
[1745547132592,0.81071316,1762.4,1762.3,0.20902917]
[1745547132750,0.31408667,1762.4,1762.3,0.20902917]
[1745547133162,0.31408667,1762.5,1762.3,5.88343193]
[1745547133398,0.31408667,1762.5,1762.3,0.20902917]
[1745547133908,1.52721731,1762.4,1762.3,0.20902917]
[1745547134067,2.32543438,1762.4,1762.0,5.67525548]
[1745547134263,2.32543438,1762.4,1762.1,0.21140599]
[1745547134689,2.32543438,1762.4,1761.9,6.42967031]
[1745547134690,2.32543438,1762.4,1762.0,5.67515097]
[1745547134896,1.06808667,1762.4,1762.1,5.88629739]
[1745547135200,0.31408667,1762.3,1762.2,5.67472477]
[1745547135560,0.31408667,1762.3,1762.2,5.88635765]
[1745547135977,0.31408667,1762.3,1762.2,6.65375765]
[1745547136197,6.10388667,1762.6,1762.3,5.67425072]
[1745547136371,4.34365217,1762.6,1762.3,5.67411504]
[1745547136576,4.974,1762.5,1762.4,0.21081956]
[1745547136777,4.34365217,1762.6,1762.5,5.67375886]
[1745547136778,5.28808667,1762.6,1762.5,5.67375886]
[1745547137168,0.31408667,1762.7,1762.6,5.67343696]
[1745547137486,0.31408667,1762.7,1762.6,5.88275857]
[1745547138066,21.998,1762.8,1762.7,5.6731151]
[1745547138321,21.998,1762.8,1762.7,5.88198797]
[1745547138669,4.974,1763.0,1762.9,5.67247149]
[1745547138907,4.974,1763.0,1762.9,5.88044703]
[1745547140482,0.7889,1763.3,1763.0,5.67210998]
[1745547140697,0.7889,1763.3,1763.1,0.2052781]
[1745547140909,3.7889,1763.3,1763.1,0.2052781]
[1745547141081,3.7889,1763.3,1763.0,5.67191944]
[1745547141279,3.3150118,1763.3,1763.1,0.2052781]
[1745547142104,3.0,1763.3,1763.1,0.2052781]
[1745547142309,3.0,1763.3,1763.1,5.87697148]
[1745547142483,3.0,1763.3,1763.1,0.2052781]
[1745547142684,3.0,1763.3,1763.1,5.87706542]
[1745547144339,3.0,1763.3,1763.1,0.2052781]
[1745547144619,0.7869,1763.2,1763.1,0.2052781]
[1745547144911,0.7869,1763.2,1762.3,6.44736192]
[1745547144912,0.7869,1763.2,1762.6,6.50395888]
[1745547145076,0.77321731,1763.1,1762.7,0.20551304]
[1745547145277,0.7869,1762.9,1762.6,6.50395888]
[1745547145477,0.7869,1762.9,1762.5,5.67360043]
[1745547145478,0.7869,1762.9,1762.7,0.20551304]
[1745547145711,0.7869,1762.9,1762.6,5.67341569]
[1745547145908,0.7869,1762.9,1762.7,0.20551304]
[1745547146111,4.928,1763.0,1762.6,5.67326107]
[1745547146414,5.79812173,1763.0,1762.7,0.20551304]
[1745547146706,5.79812173,1763.0,1762.5,6.42913803]
[1745547146898,3.0,1762.9,1762.6,0.20596178]
[1745547147274,0.7591,1762.8,1762.6,0.20596178]
[1745547147499,1.13501,1762.8,1762.4,5.67385586]
[1745547147783,0.7591,1762.8,1762.5,0.20641057]
[1745547148816,0.7591,1762.8,1762.4,5.6739185]
[1745547149132,0.7591,1762.8,1762.5,0.20641057]
[1745547149484,0.7591,1762.8,1762.5,5.88016763]
[1745547149712,0.7591,1762.8,1762.5,0.20641057]
[1745547151113,1.28728233,1762.8,1762.3,6.49947639]
[1745547151317,1.28728233,1762.8,1762.4,5.88019649]
[1745547151534,0.7591,1762.8,1762.5,5.67364041]
[1745547151702,4.929,1762.7,1762.6,0.20540063]
[1745547152084,4.929,1762.7,1762.6,5.87883759]
[1745547152289,4.929,1762.7,1762.6,6.70763759]
[1745547153113,4.929,1762.7,1762.6,0.20540063]
[1745547153494,4.929,1762.7,1762.6,5.87883759]
[1745547154030,4.929,1762.7,1762.6,0.20540063]
[1745547154536,6.2215,1762.7,1762.6,0.20540063]
[1745547154704,6.2215,1762.7,1762.4,5.67405396]
[1745547154905,6.2215,1762.7,1762.5,0.20584942]
[1745547155527,5.7286,1762.7,1762.5,0.20584942]
[1745547155778,5.7286,1762.7,1762.4,5.67389365]
[1745547155925,5.7286,1762.7,1762.6,0.20540063]
[1745547156120,5.7286,1762.7,1762.4,5.67389365]
[1745547156326,5.7286,1762.7,1762.5,0.20584942]
[1745547156654,5.7286,1762.7,1762.3,5.67427119]
[1745547156863,7.929,1762.7,1762.6,0.20540063]
[1745547157160,7.929,1762.7,1762.6,0.20576063]
[1745547157359,7.929,1762.7,1762.4,5.67384055]
[1745547157548,7.929,1762.7,1762.6,0.20576063]
[1745547157751,7.929,1762.7,1762.5,0.20620943]
[1745547159160,7.929,1762.7,1762.4,5.67407763]
[1745547159394,7.929,1762.7,1762.6,0.20552062]
[1745547159658,7.929,1762.7,1762.5,0.20596942]
[1745547159862,7.929,1762.7,1762.6,0.20560063]
[1745547160049,4.929,1762.7,1762.6,0.97400063]
[1745547160367,4.929,1762.7,1762.6,6.64743759]
[1745547160546,4.929,1762.7,1762.6,7.87953601]
[1745547160865,0.7599,1763.2,1762.6,7.87953601]
[1745547161163,4.929,1763.1,1763.0,5.67214974]
[1745547161328,4.929,1763.1,1762.9,6.44079458]
[1745547161528,4.929,1763.1,1763.0,0.20356599]
[1745547161730,4.929,1763.1,1763.0,5.87571573]
[1745547162381,1.53311731,1763.4,1763.0,7.10725642]
[1745547162382,4.929,1763.2,1763.0,7.10725642]
[1745547162537,4.929,1763.2,1763.1,5.67164971]
[1745547162737,4.929,1763.2,1763.1,5.87476716]
[1745547164149,4.929,1763.2,1763.1,0.20311745]
[1745547165775,4.929,1763.2,1762.9,6.44083916]
[1745547165969,4.929,1763.2,1763.1,0.20311745]
[1745547166272,4.929,1763.2,1763.0,0.20356599]
[1745547166473,4.929,1763.2,1763.1,0.20311745]
[1745547166974,4.929,1763.2,1763.1,0.20218831]
[1745547170283,4.929,1763.2,1763.1,5.87401634]
[1745547170573,4.929,1763.2,1763.1,7.02860996]
[1745547170879,4.929,1763.2,1763.1,1.35678193]
[1745547171065,4.929,1763.2,1763.1,0.20218831]
[1745547172977,4.929,1763.2,1763.1,0.19890925]
[1745547175285,6.51631731,1763.2,1763.1,0.19890925]
[1745547175587,6.51631731,1763.2,1762.9,5.67230707]
[1745547175747,5.7431,1763.2,1763.1,0.19898921]
[1745547175949,5.7431,1763.2,1763.0,5.67211711]
[1745547176149,5.7431,1763.2,1763.1,0.19898921]
[1745547176877,4.929,1763.2,1763.1,5.87081724]
[1745547177257,0.31501907,1763.3,1763.1,0.19898921]
[1745547177462,5.22301907,1763.3,1763.2,5.67150635]
[1745547177677,5.22301907,1763.3,1763.2,6.48310635]
[1745547177890,4.908,1763.3,1763.2,6.68109808]
[1745547181912,17.025,1763.5,1763.4,5.6708631]
[1745547181913,21.932,1763.5,1763.4,5.6708631]
[1745547182187,4.907,1763.5,1763.4,5.86803814]
[1745547184858,4.907,1763.5,1763.4,0.19717504]
[1745547185405,6.49621731,1763.5,1763.1,5.67163962]
[1745547185759,6.49621731,1763.5,1763.2,0.19483399]
[1745547185962,7.14583904,1763.5,1763.1,5.67163962]
[1745547186199,4.907,1763.5,1763.4,5.6708631]
[1745547186562,4.907,1763.5,1763.4,5.86132851]
[1745547187168,0.31495126,1763.7,1763.6,5.67022]
[1745547187371,5.22195126,1763.7,1763.6,0.19001354]
[1745547187565,4.907,1763.7,1763.5,5.67051152]
[1745547187780,4.907,1763.7,1763.6,0.19043535]
[1745547188080,4.907,1763.7,1763.6,5.86065535]
[1745547189602,4.907,1763.7,1763.6,0.19043535]
[1745547189779,6.5032,1763.7,1763.6,0.19043535]
[1745547189977,0.8055,1763.6,1763.0,0.7698]
[1745547190182,0.77321731,1763.5,1763.1,5.86393105]
[1745547190706,1.08835603,1763.5,1763.1,5.86393105]
[1745547191499,1.57774163,1763.5,1763.1,5.86379728]
[1745547192404,1.57774163,1763.5,1763.2,5.6714505]
[1745547192775,1.57774163,1763.5,1763.3,0.19103558]
[1745547193111,0.80452432,1763.5,1763.3,0.19103558]
[1745547193315,0.31513872,1763.5,1763.3,0.19103558]
[1745547193817,0.7952,1763.4,1763.3,0.19103558]
[1745547194112,1.11033872,1763.4,1763.3,0.19103558]
[1745547194313,0.7952,1763.3,1762.8,5.67276988]
[1745547194608,4.907,1763.2,1762.9,0.17938702]
[1745547194911,0.7952,1763.0,1762.9,0.17938702]
[1745547195211,0.7952,1763.0,1762.9,0.17947141]
[1745547195515,0.77321731,1763.1,1762.6,6.43631904]
[1745547195516,1.11033872,1763.1,1762.6,6.43631904]
[1745547195678,0.31513872,1763.1,1763.0,5.67214974]
[1745547196104,0.31513872,1763.1,1763.0,5.85154868]
[1745547196304,5.22213872,1763.2,1763.0,5.85154868]
[1745547196503,0.31513872,1763.2,1763.1,5.67182803]
[1745547196693,5.22213872,1763.2,1763.0,5.85154868]
[1745547196917,5.22213872,1763.2,1763.1,0.17895069]
[1745547197114,4.907,1763.2,1763.1,0.17895069]
[1745547197907,4.907,1763.2,1762.9,5.67223678]
[1745547198109,4.907,1763.2,1763.1,0.17845822]
[1745547198782,4.907,1763.2,1763.0,5.67209308]
[1745547198983,4.907,1763.2,1763.1,0.17888469]
[1745547199618,4.907,1763.2,1763.1,5.85071272]
[1745547199912,4.907,1763.2,1763.1,7.00297515]
[1745547202515,4.907,1763.2,1763.1,7.83227515]
[1745547210701,0.31513872,1763.5,1763.1,7.83227515]
[1745547210702,5.21113872,1763.5,1763.4,5.6708631]
[1745547211122,4.896,1763.5,1763.4,5.84943144]
[1745547211302,4.896,1763.5,1763.4,7.0014796]
[1745547211497,4.896,1763.5,1763.4,7.7795796]
[1745547211839,21.909,1763.8,1763.7,5.6698985]
[1745547212429,21.909,1763.8,1763.7,5.84658275]
[1745547212630,4.895,1763.8,1763.7,5.84658275]
[1745547213008,4.895,1763.8,1763.7,6.62468275]
[1745547217244,4.895,1763.8,1763.7,5.84658275]
[1745547219553,4.895,1763.8,1763.7,7.08105953]
[1745547220913,4.895,1763.8,1763.7,0.17668425]
[1745547221155,4.895,1763.8,1763.4,5.67068592]
[1745547221156,5.6667,1763.8,1763.4,5.67068592]
[1745547221339,3.0,1763.7,1763.4,11.34133727]
[1745547221660,3.56667,1763.7,1763.5,0.17318874]
[1745547222013,5.6667,1763.8,1763.6,5.6700845]
[1745547222454,8.6667,1763.8,1763.7,0.17297013]
[1745547222816,8.6667,1763.8,1763.6,5.6700845]
[1745547223016,8.6667,1763.8,1763.7,0.17297013]
[1745547223775,5.6667,1763.8,1763.6,5.67021163]
[1745547223978,5.6667,1763.8,1763.7,0.17297013]
[1745547224189,5.6667,1763.8,1763.7,5.6698985]
[1745547224354,5.6667,1763.8,1763.7,5.84286863]
[1745547224532,5.6667,1763.8,1763.7,0.17297013]
[1745547224731,5.6667,1763.8,1763.6,5.6700235]
[1745547224927,5.6667,1763.8,1763.7,0.17297013]
[1745547225230,4.895,1763.8,1763.7,5.6698985]
[1745547225428,4.895,1763.8,1763.7,5.84286863]
[1745547225971,4.895,1763.8,1763.7,0.17297013]
[1745547226185,4.895,1763.8,1763.6,5.66997629]
[1745547226390,4.895,1763.8,1763.7,0.17297013]
[1745547226538,4.895,1763.8,1763.7,5.6698985]
[1745547226736,4.895,1763.8,1763.7,5.84286863]
[1745547227011,4.895,1763.8,1763.7,0.17297013]
[1745547227154,4.895,1763.8,1763.7,5.6698985]
[1745547227475,4.895,1763.8,1763.7,0.17336874]
[1745547227859,4.895,1763.8,1763.5,5.67036065]
[1745547228050,4.895,1763.8,1763.7,0.17336874]
[1745547228673,5.21024006,1763.8,1763.6,5.67021833]
[1745547228874,5.21024006,1763.8,1763.7,0.17336874]
[1745547229174,5.21024006,1763.8,1763.6,5.67021833]
[1745547229483,5.21024006,1763.8,1763.7,0.17370619]
[1745547229642,9.6979358,1763.8,1763.7,0.17370619]
[1745547229837,0.81,1763.6,1763.3,5.67117297]
[1745547230376,0.81,1763.6,1763.4,0.17650657]
[1745547230793,1.29984574,1763.6,1763.4,0.17650657]
[1745547231000,1.29984574,1763.6,1763.2,5.67129855]
[1745547231194,1.29984574,1763.6,1763.3,0.17670164]
[1745547231602,1.6150858,1763.6,1763.3,0.17670164]
[1745547231808,1.6150858,1763.6,1763.3,5.84788077]
[1745547232103,1.29984574,1763.6,1763.3,5.84788077]
[1745547232996,1.29984574,1763.6,1763.3,0.17670164]
[1745547234533,1.6150858,1763.6,1763.3,0.17670164]
[1745547235590,1.6150858,1763.6,1763.3,5.84785239]
[1745547236105,1.6150858,1763.6,1763.3,0.17670164]
[1745547236468,1.6150858,1763.6,1763.3,5.8478825]
[1745547237679,1.29984574,1763.6,1763.3,5.8478825]
[1745547238204,1.29984574,1763.6,1763.3,0.17670164]
[1745547239615,1.29984574,1763.6,1763.3,5.84785555]
[1745547240115,1.29984574,1763.6,1763.3,0.17670164]
[1745547240712,4.893,1763.5,1763.3,0.17670164]
[1745547241008,5.20824006,1763.5,1763.3,0.17670164]
[1745547241591,5.20824006,1763.5,1763.3,5.84776078]
[1745547242276,5.20824006,1763.5,1763.3,0.17670164]
[1745547243376,5.20824006,1763.5,1763.3,5.84786781]
[1745547243921,5.20824006,1763.5,1763.3,0.17670164]
[1745547245034,5.20824006,1763.5,1763.3,5.84788391]
[1745547245918,5.20824006,1763.5,1763.3,0.17670164]
[1745547246086,6.63226595,1763.5,1763.3,0.17670164]
[1745547246418,0.8101,1763.4,1763.1,5.67181499]
[1745547246715,0.8101,1763.4,1763.2,0.17858518]
[1745547246915,1.12534006,1763.4,1763.2,0.17858518]
[1745547247213,1.12534006,1763.4,1762.9,5.67221049]
[1745547247214,1.12534006,1763.4,1763.3,0.17893886]
[1745547247420,1.86957666,1763.4,1763.0,5.67214173]
[1745547247625,1.86957666,1763.4,1763.1,0.17941348]
[1745547248602,1.86957666,1763.4,1763.1,5.8510223]
[1745547248804,1.12534006,1763.4,1763.1,5.8510223]
[1745547250384,0.31524006,1763.3,1763.1,5.8510223]
[1745547251525,0.31524006,1763.3,1763.1,0.17941348]
[1745547251526,0.8169,1763.2,1763.1,0.17941348]
[1745547252024,1.13214006,1763.2,1763.1,0.16404798]
[1745547252183,1.13214006,1763.2,1762.8,5.67259939]
[1745547252389,4.894,1763.1,1762.9,0.16494452]
[1745547252708,5.20924006,1763.1,1762.8,5.67259939]
[1745547252886,5.20924006,1763.1,1763.0,0.16449623]
[1745547253085,5.81185407,1763.1,1762.9,0.16494452]
[1745547253296,5.81185407,1763.1,1763.0,0.16449623]
[1745547253635,5.81185407,1763.1,1762.8,5.67259939]
[1745547253837,5.20924006,1763.1,1763.0,0.16449623]
[1745547254037,5.20924006,1763.1,1762.9,0.16494452]
[1745547254234,5.20924006,1763.1,1763.0,0.16449623]
[1745547254399,5.98245737,1763.1,1763.0,0.16449623]
[1745547254606,3.7707,1763.0,1762.6,5.67326519]
[1745547254936,3.7707,1763.0,1762.7,0.16584126]
[1745547255294,4.08594006,1763.0,1762.6,5.67323666]
[1745547255535,4.08594006,1763.0,1762.8,0.16539287]
[1745547255845,4.08594006,1763.0,1762.9,0.16494452]
[1745547255999,5.16357389,1763.0,1762.9,0.16494452]
[1745547256199,0.825,1762.9,1762.3,5.67429294]
[1745547256438,0.825,1762.9,1762.5,5.67373815]
[1745547256439,1.59821731,1762.9,1762.5,5.67373815]
[1745547256733,1.59821731,1762.9,1762.4,5.84266971]
[1745547256941,1.59821731,1762.9,1762.6,0.17017433]
[1745547257130,1.59821731,1762.9,1762.5,0.17003176]
[1745547257329,1.59821731,1762.9,1762.7,0.16904999]
[1745547257496,1.91345737,1762.9,1762.6,0.1693297]
[1745547257696,1.91345737,1762.9,1762.8,0.16851696]
[1745547257920,5.51256649,1762.9,1762.7,0.16896553]
[1745547258121,5.49676649,1762.9,1762.8,0.16834806]
[1745547258534,0.8092,1762.7,1762.1,0.7918]
[1745547258743,0.8092,1762.4,1762.1,5.67503569]
[1745547258916,0.8092,1762.4,1762.2,0.17095573]
[1745547260340,0.8092,1762.4,1762.2,5.84565306]
[1745547260538,0.8092,1762.4,1762.2,0.17095573]
[1745547260703,0.8092,1762.4,1762.2,5.84567403]
[1745547261942,1.19012,1762.4,1762.2,0.17095573]
[1745547262306,1.96333731,1762.4,1762.0,5.67525031]
[1745547262506,1.96333731,1762.4,1762.3,0.15748536]
[1745547262753,0.38092,1762.4,1762.2,6.44439646]
[1745547262964,3.31497206,1762.5,1762.3,0.16198622]
[1745547263446,3.0,1762.5,1762.3,0.16198622]
[1745547263813,3.0,1762.5,1762.1,5.6747636]
[1745547264116,3.0,1762.5,1762.2,0.16218161]
[1745547264330,3.77321731,1762.5,1762.2,0.16218161]
[1745547264575,4.71526904,1762.5,1762.2,0.16218161]
[1745547265216,4.71526904,1762.5,1762.0,12.12002665]
[1745547265417,4.71526904,1762.5,1762.1,0.16288408]
[1745547265618,0.7814,1762.4,1762.1,0.16288408]
[1745547266049,0.77321731,1762.3,1762.1,0.16288408]
[1745547266347,7.895,1762.2,1762.0,5.67536287]
[1745547266525,7.895,1762.2,1762.0,5.67517159]
[1745547266707,4.895,1762.2,1762.1,5.67504681]
[1745547268469,4.895,1762.2,1762.1,6.47174681]
[1745547269240,4.895,1762.2,1762.0,5.67517159]
[1745547269429,4.895,1762.2,1762.0,6.42607159]
[1745547269965,4.895,1762.2,1762.0,6.4260309]
[1745547270163,4.895,1762.2,1762.0,12.10117474]
[1745547270463,4.895,1762.2,1762.0,6.4260309]
[1745547271265,4.895,1762.2,1762.0,12.10116081]
[1745547272162,4.895,1762.2,1762.0,6.42602991]
[1745547272549,4.895,1762.2,1761.8,6.45784553]